[Event "2026 European Womens Championship"]
[Site "Batumi, GE"]
[Date "2026.06.02"]
[Round "8"]
[White "Muradyan, Anahit"]
[Black "Tsetskhladze, Mariam"]
[Result "1/2-1/2"]
[Board "63"]
[TimeControl "5400+30"]
[WhiteFideId "13314807"]
[BlackFideId "13623834"]
[WhiteElo "1977"]
[BlackElo "2234"]
[BlackTitle "WFM"]
[WhiteClock "0:32:39"]
[BlackClock "0:20:22"]
[Variant "Standard"]

1. d4 {[%clk 1:30:57]}  Nf6 {[%clk 1:30:32]} 2. c4 {[%clk 1:31:22]}  e6 {[%clk 1:30:58]} 3. Nf3 {[%clk 1:31:48]}  d5 {[%clk 1:31:25]}
4. g3 {[%clk 1:31:40]}  Bb4+ {[%clk 1:28:38]} 5. Bd2 {[%clk 1:31:54]}  a5 {[%clk 1:28:57]} 6. Qc2 {[%clk 1:30:22]}  O-O {[%clk 1:27:31]}
7. Bg2 {[%clk 1:30:45]}  c5 {[%clk 1:27:20]} 8. O-O {[%clk 1:28:54]}  cxd4 {[%clk 1:24:50]} 9. Bxb4 {[%clk 1:28:26]}  axb4 {[%clk 1:21:33]}
10. Nxd4 {[%clk 1:25:15]}  Nc6 {[%clk 1:18:15]} 11. Rd1 {[%clk 1:19:53]}  Qb6 {[%clk 0:56:22]} 12. Nb3 {[%clk 1:16:33]}  Rd8 {[%clk 0:47:48]}
13. N1d2 {[%clk 1:13:13]}  h6 {[%clk 0:42:51]} 14. cxd5 {[%clk 1:09:16]}  exd5 {[%clk 0:42:42]} 15. Nf3 {[%clk 1:07:07]}  Bg4 {[%clk 0:39:31]}
16. Nfd4 {[%clk 1:04:28]}  Rac8 {[%clk 0:35:52]} 17. Qd2 {[%clk 1:00:55]}  Ne5 {[%clk 0:35:42]} 18. h3 {[%clk 0:52:24]}  Nc4 {[%clk 0:34:11]}
19. Qf4 {[%clk 0:52:43]}  Bh5 {[%clk 0:31:35]} 20. Nf5 {[%clk 0:51:42]}  Re8 {[%clk 0:26:44]} 21. Bxd5 {[%clk 0:45:04]}  Bxe2 {[%clk 0:21:51]}
22. Bxc4 {[%clk 0:33:35]}  Rxc4 {[%clk 0:16:41]} 23. Rd4 {[%clk 0:29:02]}  Rxd4 {[%clk 0:10:55]} 24. Nbxd4 {[%clk 0:29:24]}  Bh5 {[%clk 0:09:56]}
25. Nxg7 {[%clk 0:27:01]}  Nd5 {[%clk 0:03:43]} 26. Qd2 {[%clk 0:24:55]}  Kxg7 {[%clk 0:02:33]} 27. Nf5+ {[%clk 0:25:21]}  Kh7 {[%clk 0:02:37]}
28. Qxd5 {[%clk 0:25:21]}  Re2 {[%clk 0:00:13]} 29. Nd4 {[%clk 0:24:08]}  Re7 {[%clk 0:01:23]} 30. Qxh5 {[%clk 0:23:25]}  Qxd4 {[%clk 0:01:48]}
31. Qf5+ {[%clk 0:21:53]}  Kg7 {[%clk 0:02:10]} 32. Qg4+ {[%clk 0:20:09]}  Qxg4 {[%clk 0:02:35]} 33. hxg4 {[%clk 0:20:37]}  Re2 {[%clk 0:03:00]}
34. b3 {[%clk 0:21:03]}  Kg6 {[%clk 0:00:44]} 35. Rd1 {[%clk 0:20:58]}  Rxa2 {[%clk 0:00:36]} 36. Rd4 {[%clk 0:21:24]}  Rc2 {[%clk 0:00:42]}
37. Rxb4 {[%clk 0:21:50]}  Rc7 {[%clk 0:01:09]} 38. Kg2 {[%clk 0:21:11]}  f6 {[%clk 0:01:29]} 39. Kf3 {[%clk 0:21:20]}  h5 {[%clk 0:01:44]}
40. gxh5+ {[%clk 0:21:24]}  Kxh5 {[%clk 0:02:09]} 41. Rb6 {[%clk 0:21:25]}  Kg5 {[%clk 0:01:25]} 42. Ke4 {[%clk 0:20:41]}  Re7+ {[%clk 0:26:54]}
43. Kd5 {[%clk 0:49:13]}  Kf5 {[%clk 0:25:36]} 44. b4 {[%clk 0:45:13]}  Re2 {[%clk 0:23:49]} 45. f4 {[%clk 0:45:38]}  Rg2 {[%clk 0:24:06]}
46. Rxb7 {[%clk 0:44:55]}  Rxg3 {[%clk 0:24:32]} 47. Rf7 {[%clk 0:44:44]}  Rg6 {[%clk 0:24:00]} 48. b5 {[%clk 0:44:53]}  Kxf4 {[%clk 0:23:03]}
49. b6 {[%clk 0:36:39]}  f5 {[%clk 0:23:05]} 50. Kc5 {[%clk 0:34:23]}  Rg1 {[%clk 0:21:52]} 51. b7 {[%clk 0:34:36]}  Rb1 {[%clk 0:21:03]}
52. Rh7 {[%clk 0:34:22]}  Kg3 {[%clk 0:20:28]} 53. Kc6 {[%clk 0:32:41]}  f4 {[%clk 0:20:02]} 54. Rg7+ {[%clk 0:31:45]}  Kf2 {[%clk 0:19:52]}
55. Rg5 {[%clk 0:31:48]}  Rxb7 {[%clk 0:19:57]} 56. Kxb7 {[%clk 0:32:13]}  f3 {[%clk 0:20:24]} 57. Kc6 {[%clk 0:32:30]}  Kf1 {[%clk 0:19:40]}
58. Kd5 {[%clk 0:32:26]}  f2 {[%clk 0:20:05]} 59. Ke4 {[%clk 0:32:39]}  Ke1 {[%clk 0:20:22]} 1/2-1/2

[Event "2026 European Womens Championship"]
[Site "Batumi, GE"]
[Date "2026.06.02"]
[Round "8"]
[White "Gueci, Tea"]
[Black "Esadze, Tamari"]
[Result "1/2-1/2"]
[Board "64"]
[TimeControl "5400+30"]
[WhiteFideId "872342"]
[BlackFideId "13611186"]
[WhiteElo "2160"]
[BlackElo "1974"]
[WhiteTitle "WIM"]
[WhiteClock "0:16:59"]
[BlackClock "0:32:05"]
[Variant "Standard"]

1. e4 {[%clk 1:30:59]}  c5 {[%clk 1:30:56]} 2. Nf3 {[%clk 1:31:26]}  d6 {[%clk 1:31:22]} 3. Nc3 {[%clk 1:31:52]}  Nf6 {[%clk 1:31:36]}
4. d4 {[%clk 1:32:19]}  cxd4 {[%clk 1:32:03]} 5. Qxd4 {[%clk 1:32:44]}  Nc6 {[%clk 1:30:41]} 6. Bb5 {[%clk 1:33:08]}  Bd7 {[%clk 1:31:07]}
7. Bxc6 {[%clk 1:33:33]}  Bxc6 {[%clk 1:31:34]} 8. Bg5 {[%clk 1:33:57]}  e6 {[%clk 1:30:32]} 9. O-O-O {[%clk 1:34:17]}  Be7 {[%clk 1:29:52]}
10. Qd3 {[%clk 1:34:26]}  O-O {[%clk 1:27:25]} 11. Nd4 {[%clk 1:34:38]}  Qa5 {[%clk 1:23:31]} 12. f4 {[%clk 1:34:59]}  Rac8 {[%clk 1:17:35]}
13. Kb1 {[%clk 1:34:19]}  a6 {[%clk 1:12:23]} 14. Qe2 {[%clk 1:24:15]}  Qc7 {[%clk 0:59:45]} 15. f5 {[%clk 1:16:36]}  Bd7 {[%clk 0:52:20]}
16. g4 {[%clk 1:06:49]}  b5 {[%clk 0:49:12]} 17. a3 {[%clk 0:59:38]}  Qc4 {[%clk 0:40:30]} 18. Qf3 {[%clk 0:45:28]}  b4 {[%clk 0:31:37]}
19. axb4 {[%clk 0:45:25]}  Qxb4 {[%clk 0:31:54]} 20. Nb3 {[%clk 0:41:38]}  Bc6 {[%clk 0:27:46]} 21. Rd4 {[%clk 0:39:46]}  Qb7 {[%clk 0:23:17]}
22. Be3 {[%clk 0:22:19]}  e5 {[%clk 0:15:20]} 23. Rc4 {[%clk 0:21:03]}  d5 {[%clk 0:10:20]} 24. Na5 {[%clk 0:20:39]}  dxe4 {[%clk 0:10:05]}
25. Qg3 {[%clk 0:18:26]}  Qa8 {[%clk 0:09:58]} 26. g5 {[%clk 0:17:27]}  Nd5 {[%clk 0:05:27]} 27. f6 {[%clk 0:16:40]}  Nxc3+ {[%clk 0:04:24]}
28. Rxc3 {[%clk 0:16:45]}  Bb4 {[%clk 0:04:09]} 29. Rxc6 {[%clk 0:15:14]}  Rxc6 {[%clk 0:04:16]} 30. Nxc6 {[%clk 0:15:08]}  Qxc6 {[%clk 0:04:44]}
31. Qxe5 {[%clk 0:14:55]}  Rc8 {[%clk 0:04:12]} 32. c3 {[%clk 0:12:54]}  Bd6 {[%clk 0:04:29]} 33. Qa5 {[%clk 0:09:34]}  Bf8 {[%clk 0:02:21]}
34. Rd1 {[%clk 0:08:56]}  Qc4 {[%clk 0:02:18]} 35. Qd5 {[%clk 0:06:07]}  Qe2 {[%clk 0:02:18]} 36. Qd2 {[%clk 0:06:20]}  Qc4 {[%clk 0:02:02]}
37. Qd4 {[%clk 0:02:31]}  Qe2 {[%clk 0:01:34]} 38. Rd2 {[%clk 0:02:44]}  Qf1+ {[%clk 0:01:23]} 39. Rd1 {[%clk 0:03:10]}  Qe2 {[%clk 0:01:48]}
40. Qd2 {[%clk 0:02:58]}  Qc4 {[%clk 0:02:15]} 41. Qd5 {[%clk 0:16:59]}  Qe2 {[%clk 0:32:05]} 1/2-1/2

[Event "2026 European Womens Championship"]
[Site "Batumi, GE"]
[Date "2026.06.02"]
[Round "8"]
[White "Damaso Tacoronte, Carolina"]
[Black "Ptacnikova, Lenka"]
[Result "0-1"]
[Board "65"]
[TimeControl "5400+30"]
[WhiteFideId "2292858"]
[BlackFideId "305650"]
[WhiteElo "1890"]
[BlackElo "2126"]
[BlackTitle "WGM"]
[WhiteClock "0:00:35"]
[BlackClock "0:25:19"]
[Variant "Standard"]

1. d4 {[%clk 1:30:52]}  Nf6 {[%clk 1:30:52]} 2. c4 {[%clk 1:31:06]}  e6 {[%clk 1:31:10]} 3. Nf3 {[%clk 1:31:09]}  d5 {[%clk 1:31:30]}
4. Nc3 {[%clk 1:29:39]}  c5 {[%clk 1:31:27]} 5. dxc5 {[%clk 1:21:26]}  Bxc5 {[%clk 1:29:46]} 6. cxd5 {[%clk 1:21:06]}  exd5 {[%clk 1:28:16]}
7. e3 {[%clk 1:18:37]}  Nc6 {[%clk 1:26:30]} 8. Bb5 {[%clk 1:13:29]}  O-O {[%clk 1:26:25]} 9. Bxc6 {[%clk 1:10:09]}  bxc6 {[%clk 1:26:51]}
10. h3 {[%clk 1:08:16]}  Ba6 {[%clk 1:22:22]} 11. a3 {[%clk 1:07:01]}  Re8 {[%clk 1:18:44]} 12. Nd4 {[%clk 0:45:23]}  Rc8 {[%clk 1:12:10]}
13. b4 {[%clk 0:38:21]}  Bd6 {[%clk 1:10:31]} 14. Nce2 {[%clk 0:36:55]}  c5 {[%clk 0:58:05]} 15. bxc5 {[%clk 0:36:21]}  Bxc5 {[%clk 0:58:02]}
16. Bb2 {[%clk 0:33:31]}  Qb6 {[%clk 0:57:14]} 17. Rb1 {[%clk 0:32:57]}  Rb8 {[%clk 0:57:04]} 18. Rc1 {[%clk 0:17:58]}  Bxe2 {[%clk 0:46:00]}
19. Nxe2 {[%clk 0:16:58]}  Bxe3 {[%clk 0:44:57]} 20. fxe3 {[%clk 0:15:31]}  Qxb2 {[%clk 0:45:02]} 21. O-O {[%clk 0:13:37]}  Rxe3 {[%clk 0:44:51]}
22. Rc2 {[%clk 0:11:57]}  Qxa3 {[%clk 0:40:11]} 23. Nd4 {[%clk 0:06:15]}  Rbe8 {[%clk 0:36:11]} 24. Nf5 {[%clk 0:04:19]}  R3e6 {[%clk 0:36:11]}
25. Qd2 {[%clk 0:03:39]}  Qf8 {[%clk 0:33:58]} 26. Rc7 {[%clk 0:03:11]}  a6 {[%clk 0:32:54]} 27. Qg5 {[%clk 0:03:03]}  Ne4 {[%clk 0:32:54]}
28. Qf4 {[%clk 0:02:18]}  Rf6 {[%clk 0:31:35]} 29. Qh4 {[%clk 0:01:17]}  Nd6 {[%clk 0:27:06]} 30. Nxd6 {[%clk 0:00:32]}  Rxf1+ {[%clk 0:27:11]}
31. Kxf1 {[%clk 0:01:01]}  Qxd6 {[%clk 0:27:33]} 32. Ra7 {[%clk 0:00:42]}  Qc5 {[%clk 0:25:00]} 33. Qf2 {[%clk 0:00:35]}  Qc1+ {[%clk 0:25:19]} 0-1

[Event "2026 European Womens Championship"]
[Site "Batumi, GE"]
[Date "2026.06.02"]
[Round "8"]
[White "Khairova, Evelina"]
[Black "Liashkevich, Lizaveta"]
[Result "0-1"]
[Board "66"]
[TimeControl "5400+30"]
[WhiteFideId "2845768"]
[BlackFideId "13518658"]
[WhiteElo "1880"]
[BlackElo "2079"]
[BlackTitle "WFM"]
[WhiteClock "0:02:26"]
[BlackClock "0:02:58"]
[Variant "Standard"]

1. e4 {[%clk 1:28:05]}  c5 {[%clk 1:30:50]} 2. Nf3 {[%clk 1:28:30]}  e6 {[%clk 1:31:06]} 3. g3 {[%clk 1:25:03]}  d5 {[%clk 1:29:45]}
4. exd5 {[%clk 1:21:04]}  exd5 {[%clk 1:29:52]} 5. d4 {[%clk 1:20:23]}  Nf6 {[%clk 1:24:12]} 6. Bg2 {[%clk 1:17:55]}  c4 {[%clk 1:21:51]}
7. O-O {[%clk 1:14:39]}  Be7 {[%clk 1:21:01]} 8. b3 {[%clk 1:12:33]}  cxb3 {[%clk 1:18:21]} 9. axb3 {[%clk 1:11:40]}  O-O {[%clk 1:17:22]}
10. c4 {[%clk 1:05:09]}  b6 {[%clk 1:12:55]} 11. Nc3 {[%clk 0:57:03]}  Bb7 {[%clk 1:06:49]} 12. Bg5 {[%clk 0:53:40]}  dxc4 {[%clk 1:03:52]}
13. bxc4 {[%clk 0:51:56]}  h6 {[%clk 1:00:48]} 14. Bf4 {[%clk 0:42:41]}  Nbd7 {[%clk 0:44:41]} 15. d5 {[%clk 0:32:57]}  Bc5 {[%clk 0:42:43]}
16. Nb5 {[%clk 0:28:10]}  a5 {[%clk 0:38:49]} 17. Bc7 {[%clk 0:25:10]}  Qc8 {[%clk 0:38:03]} 18. Nfd4 {[%clk 0:23:54]}  Ne8 {[%clk 0:29:41]}
19. Bf4 {[%clk 0:22:31]}  Ndf6 {[%clk 0:25:12]} 20. Qd3 {[%clk 0:15:31]}  Nh5 {[%clk 0:19:20]} 21. Be3 {[%clk 0:12:15]}  Nd6 {[%clk 0:15:00]}
22. Nc6 {[%clk 0:07:16]}  Qd7 {[%clk 0:11:25]} 23. Bxc5 {[%clk 0:06:57]}  bxc5 {[%clk 0:11:47]} 24. Nxd6 {[%clk 0:06:31]}  Qxd6 {[%clk 0:12:08]}
25. Nxa5 {[%clk 0:06:48]}  Bc8 {[%clk 0:11:26]} 26. Rfe1 {[%clk 0:05:58]}  Nf6 {[%clk 0:10:12]} 27. Nc6 {[%clk 0:04:36]}  Bd7 {[%clk 0:09:32]}
28. Rxa8 {[%clk 0:04:09]}  Rxa8 {[%clk 0:10:00]} 29. Ne5 {[%clk 0:03:42]}  Ra4 {[%clk 0:07:04]} 30. Nxd7 {[%clk 0:03:12]}  Qxd7 {[%clk 0:05:48]}
31. Rb1 {[%clk 0:02:19]}  Qd6 {[%clk 0:04:53]} 32. Qb3 {[%clk 0:01:42]}  Rb4 {[%clk 0:04:27]} 33. Qc2 {[%clk 0:01:46]}  Nd7 {[%clk 0:03:49]}
34. Rc1 {[%clk 0:01:09]}  Qf6 {[%clk 0:02:01]} 35. Qe4 {[%clk 0:00:57]}  Nb6 {[%clk 0:01:16]} 36. Qe8+ {[%clk 0:01:04]}  Kh7 {[%clk 0:01:45]}
37. Qe4+ {[%clk 0:01:21]}  g6 {[%clk 0:01:49]} 38. Bf1 {[%clk 0:01:11]}  Rb2 {[%clk 0:01:25]} 39. Qe3 {[%clk 0:01:25]}  Nd7 {[%clk 0:01:29]}
40. f4 {[%clk 0:00:59]}  h5 {[%clk 0:01:28]} 41. Qc3 {[%clk 0:00:44]}  Qb6 {[%clk 0:01:18]} 42. Re1 {[%clk 0:24:02]}  Rb3 {[%clk 0:30:19]}
43. Qa1 {[%clk 0:20:29]}  Nf6 {[%clk 0:27:41]} 44. Qe5 {[%clk 0:16:18]}  Ng4 {[%clk 0:23:30]} 45. Qe7 {[%clk 0:13:14]}  Kg7 {[%clk 0:19:43]}
46. d6 {[%clk 0:08:15]}  Qa5 {[%clk 0:18:11]} 47. Qe2 {[%clk 0:01:53]}  Qc3 {[%clk 0:11:47]} 48. Rd1 {[%clk 0:01:00]}  Qf6 {[%clk 0:05:41]}
49. d7 {[%clk 0:00:54]}  Rb8 {[%clk 0:06:06]} 50. Qe8 {[%clk 0:00:44]}  Rd8 {[%clk 0:06:14]} 51. h3 {[%clk 0:00:49]}  Nh6 {[%clk 0:06:30]}
52. Qe5 {[%clk 0:00:42]}  Qxe5 {[%clk 0:06:22]} 53. fxe5 {[%clk 0:01:10]}  Nf5 {[%clk 0:05:20]} 54. Rd5 {[%clk 0:00:55]}  Kf8 {[%clk 0:04:50]}
55. Rxc5 {[%clk 0:00:42]}  Rxd7 {[%clk 0:05:13]} 56. Rd5 {[%clk 0:00:39]}  Rc7 {[%clk 0:04:36]} 57. Kf2 {[%clk 0:00:52]}  Ke7 {[%clk 0:04:30]}
58. c5 {[%clk 0:00:44]}  Ng7 {[%clk 0:04:51]} 59. Bb5 {[%clk 0:00:44]}  Ne6 {[%clk 0:05:09]} 60. c6 {[%clk 0:00:57]}  Ng5 {[%clk 0:05:10]}
61. Kg2 {[%clk 0:00:47]}  Ne4 {[%clk 0:04:03]} 62. Rd3 {[%clk 0:00:47]}  Ke6 {[%clk 0:03:13]} 63. Rd7 {[%clk 0:00:38]}  Rxd7 {[%clk 0:03:32]}
64. cxd7 {[%clk 0:01:07]}  Ke7 {[%clk 0:03:53]} 65. Kf3 {[%clk 0:00:42]}  Ng5+ {[%clk 0:03:25]} 66. Ke3 {[%clk 0:00:44]}  Nxh3 {[%clk 0:02:37]}
67. Kd4 {[%clk 0:01:04]}  Ng5 {[%clk 0:02:53]} 68. Kd5 {[%clk 0:01:09]}  Ne6 {[%clk 0:03:06]} 69. Ba4 {[%clk 0:00:37]}  Nf8 {[%clk 0:02:23]}
70. d8=Q+ {[%clk 0:00:53]}  Kxd8 {[%clk 0:02:51]} 71. Kd6 {[%clk 0:01:17]}  Ne6 {[%clk 0:01:35]} 72. Bb3 {[%clk 0:01:44]}  Ng5 {[%clk 0:01:22]}
73. e6 {[%clk 0:01:07]}  fxe6 {[%clk 0:01:45]} 74. Bxe6 {[%clk 0:01:19]}  Ne4+ {[%clk 0:01:34]} 75. Ke5 {[%clk 0:01:44]}  Ke7 {[%clk 0:01:26]}
76. g4 {[%clk 0:01:20]}  h4 {[%clk 0:01:00]} 77. Bd5 {[%clk 0:01:27]}  Ng5 {[%clk 0:00:50]} 78. Kf4 {[%clk 0:01:29]}  Kf6 {[%clk 0:01:13]}
79. Bg2 {[%clk 0:01:03]}  Ne6+ {[%clk 0:01:37]} 80. Ke4 {[%clk 0:01:04]}  Kg5 {[%clk 0:01:56]} 81. Ke5 {[%clk 0:01:03]}  Nf4 {[%clk 0:01:58]}
82. Bf3 {[%clk 0:01:29]}  Nh3 {[%clk 0:02:09]} 83. Ke4 {[%clk 0:00:35]}  Nf2+ {[%clk 0:00:41]} 84. Ke3 {[%clk 0:00:54]}  Nxg4+ {[%clk 0:01:07]}
85. Ke2 {[%clk 0:01:18]}  Kf4 {[%clk 0:01:29]} 86. Bb7 {[%clk 0:01:30]}  Kg3 {[%clk 0:01:52]} 87. Kf1 {[%clk 0:01:50]}  Kh2 {[%clk 0:02:16]}
88. Bf3 {[%clk 0:02:03]}  Ne5 {[%clk 0:02:41]} 89. Be4 {[%clk 0:02:26]}  g5 {[%clk 0:02:58]} 0-1

[Event "2026 European Womens Championship"]
[Site "Batumi, GE"]
[Date "2026.06.02"]
[Round "8"]
[White "Nenova, Andzhelika"]
[Black "Koghuashvili, Tekla"]
[Result "1-0"]
[Board "67"]
[TimeControl "5400+30"]
[WhiteFideId "2939355"]
[BlackFideId "13621564"]
[WhiteElo "2072"]
[BlackElo "1921"]
[WhiteClock "0:34:10"]
[BlackClock "0:41:17"]
[Variant "Standard"]

1. e4 {[%clk 1:30:03]}  c5 {[%clk 1:30:54]} 2. Nf3 {[%clk 1:30:22]}  e6 {[%clk 1:31:18]} 3. d4 {[%clk 1:30:45]}  cxd4 {[%clk 1:31:43]}
4. Nxd4 {[%clk 1:31:09]}  Nc6 {[%clk 1:32:09]} 5. Nc3 {[%clk 1:31:27]}  Qc7 {[%clk 1:32:33]} 6. Be3 {[%clk 1:31:47]}  a6 {[%clk 1:32:58]}
7. g4 {[%clk 1:32:04]}  b5 {[%clk 1:31:51]} 8. Nxc6 {[%clk 1:32:17]}  Qxc6 {[%clk 1:32:12]} 9. Qd2 {[%clk 1:32:30]}  b4 {[%clk 1:30:52]}
10. Ne2 {[%clk 1:32:50]}  Qxe4 {[%clk 1:30:41]} 11. Rg1 {[%clk 1:33:08]}  Qb7 {[%clk 1:27:58]} 12. Bg2 {[%clk 1:32:34]}  d5 {[%clk 1:28:22]}
13. O-O-O {[%clk 1:30:23]}  Bd7 {[%clk 1:25:29]} 14. f4 {[%clk 1:24:09]}  Rc8 {[%clk 1:23:26]} 15. Kb1 {[%clk 1:20:04]}  Ne7 {[%clk 1:21:59]}
16. f5 {[%clk 1:17:06]}  Nc6 {[%clk 1:19:30]} 17. Nf4 {[%clk 1:08:17]}  Ne5 {[%clk 1:09:06]} 18. fxe6 {[%clk 1:01:30]}  fxe6 {[%clk 1:09:19]}
19. Bd4 {[%clk 1:00:52]}  Nc6 {[%clk 1:04:18]} 20. Rge1 {[%clk 0:44:53]}  Be7 {[%clk 0:59:20]} 21. Nxe6 {[%clk 0:41:57]}  Bxe6 {[%clk 0:58:51]}
22. Rxe6 {[%clk 0:42:06]}  Qd7 {[%clk 0:52:06]} 23. Bxg7 {[%clk 0:40:03]}  Qxe6 {[%clk 0:51:49]} 24. Bxh8 {[%clk 0:40:13]}  b3 {[%clk 0:49:13]}
25. Bxd5 {[%clk 0:37:18]}  bxc2+ {[%clk 0:46:03]} 26. Qxc2 {[%clk 0:37:28]}  Qh6 {[%clk 0:43:03]} 27. Qf5 {[%clk 0:34:41]}  Qg6 {[%clk 0:40:05]}
28. Bf7+ {[%clk 0:34:58]}  Qxf7 {[%clk 0:40:30]} 29. Qxc8+ {[%clk 0:35:23]}  Nd8 {[%clk 0:40:56]} 30. Qd7+ {[%clk 0:34:10]}  Kf8 {[%clk 0:41:17]}
31. Qf5 {[%clk 0:34:10]} 1-0

[Event "2026 European Womens Championship"]
[Site "Batumi, GE"]
[Date "2026.06.02"]
[Round "8"]
[White "Rekhviashvili, Mariam"]
[Black "Subramanian, Anusha"]
[Result "0-1"]
[Board "68"]
[TimeControl "5400+30"]
[WhiteFideId "13635859"]
[BlackFideId "477710"]
[WhiteElo "1836"]
[BlackElo "2068"]
[BlackTitle "WFM"]
[WhiteClock "0:03:56"]
[BlackClock "0:08:16"]
[Variant "Standard"]

1. e4 {[%clk 1:29:33]}  e5 {[%clk 1:30:58]} 2. Nf3 {[%clk 1:29:56]}  Nc6 {[%clk 1:31:23]} 3. Bb5 {[%clk 1:30:19]}  a6 {[%clk 1:31:46]}
4. Bxc6 {[%clk 1:30:45]}  dxc6 {[%clk 1:32:10]} 5. O-O {[%clk 1:31:11]}  Qf6 {[%clk 1:32:35]} 6. d4 {[%clk 1:29:54]}  exd4 {[%clk 1:32:58]}
7. Bg5 {[%clk 1:24:21]}  Qd6 {[%clk 1:33:22]} 8. e5 {[%clk 1:22:55]}  Qg6 {[%clk 1:30:22]} 9. Qxd4 {[%clk 1:22:24]}  Be7 {[%clk 1:30:06]}
10. Bxe7 {[%clk 1:16:35]}  Nxe7 {[%clk 1:30:25]} 11. Nc3 {[%clk 1:16:01]}  Be6 {[%clk 1:25:04]} 12. Ne4 {[%clk 1:07:36]}  Rd8 {[%clk 1:22:16]}
13. Qe3 {[%clk 1:03:24]}  Nd5 {[%clk 1:18:33]} 14. Qe1 {[%clk 1:00:14]}  Nf4 {[%clk 1:15:39]} 15. Nh4 {[%clk 0:59:45]}  Qh6 {[%clk 1:15:27]}
16. f3 {[%clk 0:57:33]}  O-O {[%clk 0:52:57]} 17. Kh1 {[%clk 0:43:29]}  g5 {[%clk 0:39:42]} 18. g3 {[%clk 0:40:50]}  gxh4 {[%clk 0:30:44]}
19. gxf4 {[%clk 0:37:57]}  Qxf4 {[%clk 0:29:36]} 20. Qc3 {[%clk 0:33:17]}  Kh8 {[%clk 0:28:04]} 21. Rad1 {[%clk 0:32:46]}  b5 {[%clk 0:15:36]}
22. b4 {[%clk 0:27:51]}  a5 {[%clk 0:10:56]} 23. a3 {[%clk 0:23:36]}  axb4 {[%clk 0:10:37]} 24. axb4 {[%clk 0:21:24]}  h3 {[%clk 0:09:10]}
25. Rd3 {[%clk 0:12:59]}  Rxd3 {[%clk 0:08:13]} 26. cxd3 {[%clk 0:13:04]}  Rg8 {[%clk 0:05:38]} 27. Ng3 {[%clk 0:10:53]}  Bd5 {[%clk 0:03:54]}
28. d4 {[%clk 0:10:31]}  Rxg3 {[%clk 0:03:07]} 29. hxg3 {[%clk 0:09:18]}  Qxg3 {[%clk 0:03:32]} 30. Qd2 {[%clk 0:07:31]}  Bxf3+ {[%clk 0:03:53]}
31. Rxf3 {[%clk 0:07:55]}  Qxf3+ {[%clk 0:04:20]} 32. Kh2 {[%clk 0:08:16]}  Qg2+ {[%clk 0:03:56]} 0-1

[Event "2026 European Womens Championship"]
[Site "Batumi, GE"]
[Date "2026.06.02"]
[Round "8"]
[White "Kalyoncu, Beren"]
[Black "Krkyasharyan, Sona"]
[Result "0-1"]
[Board "69"]
[TimeControl "5400+30"]
[WhiteFideId "51608383"]
[BlackFideId "13316729"]
[WhiteElo "1840"]
[BlackElo "2063"]
[WhiteTitle "WCM"]
[BlackTitle "WFM"]
[WhiteClock "0:06:45"]
[BlackClock "0:25:46"]
[Variant "Standard"]

1. c4 {[%clk 1:29:58]}  Nf6 {[%clk 1:30:52]} 2. Nc3 {[%clk 1:30:12]}  e5 {[%clk 1:31:16]} 3. g3 {[%clk 1:29:56]}  d5 {[%clk 1:29:00]}
4. cxd5 {[%clk 1:29:03]}  Nxd5 {[%clk 1:29:25]} 5. Bg2 {[%clk 1:28:54]}  Nb6 {[%clk 1:29:47]} 6. Nf3 {[%clk 1:27:54]}  Nc6 {[%clk 1:29:44]}
7. O-O {[%clk 1:27:24]}  Be7 {[%clk 1:29:40]} 8. d3 {[%clk 1:26:52]}  Be6 {[%clk 1:28:01]} 9. b3 {[%clk 1:20:13]}  f6 {[%clk 1:26:45]}
10. Bb2 {[%clk 1:20:23]}  Qd7 {[%clk 1:26:58]} 11. Rc1 {[%clk 1:17:46]}  Bh3 {[%clk 1:24:24]} 12. Ne4 {[%clk 1:14:13]}  Bxg2 {[%clk 1:15:56]}
13. Kxg2 {[%clk 1:14:34]}  O-O-O {[%clk 1:15:52]} 14. Qc2 {[%clk 1:07:34]}  h5 {[%clk 1:13:12]} 15. a3 {[%clk 1:01:32]}  h4 {[%clk 1:06:49]}
16. b4 {[%clk 0:55:26]}  hxg3 {[%clk 1:04:42]} 17. fxg3 {[%clk 0:53:54]}  Nd5 {[%clk 1:04:44]} 18. Kf2 {[%clk 0:49:02]}  g5 {[%clk 1:00:22]}
19. Nc5 {[%clk 0:42:38]}  Bxc5+ {[%clk 0:58:05]} 20. Qxc5 {[%clk 0:42:28]}  g4 {[%clk 0:57:30]} 21. Nh4 {[%clk 0:42:17]}  Kb8 {[%clk 0:56:32]}
22. Kg1 {[%clk 0:38:18]}  Rdg8 {[%clk 0:44:01]} 23. Ng2 {[%clk 0:27:14]}  Rg6 {[%clk 0:39:30]} 24. e4 {[%clk 0:24:53]}  Nde7 {[%clk 0:39:03]}
25. b5 {[%clk 0:23:16]}  Nd8 {[%clk 0:39:04]} 26. Rc2 {[%clk 0:20:05]}  Ne6 {[%clk 0:36:11]} 27. Qc4 {[%clk 0:19:59]}  Nc8 {[%clk 0:33:25]}
28. a4 {[%clk 0:18:04]}  Nb6 {[%clk 0:32:22]} 29. Qb4 {[%clk 0:15:55]}  Qxd3 {[%clk 0:30:19]} 30. Rfc1 {[%clk 0:15:40]}  Ng5 {[%clk 0:27:43]}
31. Nh4 {[%clk 0:12:12]}  Rxh4 {[%clk 0:23:56]} 32. Qf8+ {[%clk 0:11:42]}  Nc8 {[%clk 0:24:21]} 33. gxh4 {[%clk 0:07:00]}  Nh3+ {[%clk 0:24:38]}
34. Kh1 {[%clk 0:06:40]}  Qf3+ {[%clk 0:25:02]} 35. Rg2 {[%clk 0:06:53]}  Nf4 {[%clk 0:25:26]} 36. Rcg1 {[%clk 0:06:45]}  g3 {[%clk 0:25:46]} 0-1